[Event "Early-Titled-Tuesday-Blitz-March-05-2024"]
[Site "Chess.com"]
[Date "2024.03.05"]
[Round "7"]
[White "Alenzer"]
[Black "Happy1712Drummer"]
[Result "0-1"]
[WhiteElo "2171"]
[BlackElo "2310"]
[TimeControl "180+1"]
[EndTime "9:20:12 PST"]
[Termination "Happy1712Drummer won on time"]

1. e4 {[%clk 0:03:00.9]} 1... c6 {[%clk 0:02:59.1]} 2. Nc3 {[%clk 0:02:59.9]}
2... d5 {[%clk 0:02:58]} 3. Qe2 {[%clk 0:02:59]} 3... d4 {[%clk 0:02:55.6]} 4.
Nd1 {[%clk 0:02:58.7]} 4... e5 {[%clk 0:02:53.4]} 5. g3 {[%clk 0:02:56.2]} 5...
Nf6 {[%clk 0:02:52.2]} 6. Bg2 {[%clk 0:02:54.8]} 6... c5 {[%clk 0:02:42.6]} 7.
d3 {[%clk 0:02:52.7]} 7... Nc6 {[%clk 0:02:42.6]} 8. f4 {[%clk 0:02:52.8]} 8...
Bd6 {[%clk 0:02:40.3]} 9. Nf3 {[%clk 0:02:52.2]} 9... Qc7 {[%clk 0:02:26.6]} 10.
f5 {[%clk 0:02:45.4]} 10... b5 {[%clk 0:02:08.6]} 11. O-O {[%clk 0:02:34.2]}
11... Ba6 {[%clk 0:02:04.3]} 12. a4 {[%clk 0:02:27.6]} 12... c4 {[%clk
0:01:48.9]} 13. axb5 {[%clk 0:02:22.4]} 13... cxd3 {[%clk 0:01:48.5]} 14. cxd3
{[%clk 0:01:37.1]} 14... Bxb5 {[%clk 0:01:47.3]} 15. Nf2 {[%clk 0:01:28.7]}
15... Nb4 {[%clk 0:01:43.8]} 16. Bg5 {[%clk 0:01:19.3]} 16... Be7 {[%clk
0:01:36.7]} 17. Rfc1 {[%clk 0:01:18.2]} 17... Qd7 {[%clk 0:01:34.2]} 18. Nxe5
{[%clk 0:01:17.6]} 18... Qd6 {[%clk 0:01:27.6]} 19. Bf4 {[%clk 0:00:58.7]} 19...
Qb6 {[%clk 0:01:22.9]} 20. Nc4 {[%clk 0:00:54]} 20... Qd8 {[%clk 0:01:16.2]} 21.
e5 {[%clk 0:00:53.6]} 21... Nfd5 {[%clk 0:01:14.5]} 22. Nd6+ {[%clk 0:00:47.7]}
22... Kf8 {[%clk 0:01:14.8]} 23. Nxb5 {[%clk 0:00:45.9]} 23... Rb8 {[%clk
0:01:03.7]} 24. Nxa7 {[%clk 0:00:32.1]} 24... Nxf4 {[%clk 0:01:01.9]} 25. gxf4
{[%clk 0:00:29.6]} 25... Qb6 {[%clk 0:00:48.6]} 26. Nc6 {[%clk 0:00:23.4]} 26...
Rd8 {[%clk 0:00:34.5]} 27. Nxe7 {[%clk 0:00:22]} 27... Kxe7 {[%clk 0:00:32.9]}
28. Ne4 {[%clk 0:00:20.3]} 28... Nd5 {[%clk 0:00:32]} 29. f6+ {[%clk 0:00:18.9]}
29... Kf8 {[%clk 0:00:30.5]} 30. fxg7+ {[%clk 0:00:19.1]} 30... Kxg7 {[%clk
0:00:30.8]} 31. Qg4+ {[%clk 0:00:19.3]} 31... Kf8 {[%clk 0:00:30.8]} 32. Kh1
{[%clk 0:00:15.1]} 32... Ne3 {[%clk 0:00:29.4]} 33. Qf3 {[%clk 0:00:13.5]} 33...
Rg8 {[%clk 0:00:27.6]} 34. Ng5 {[%clk 0:00:13.7]} 34... h6 {[%clk 0:00:25.6]}
35. Qh5 {[%clk 0:00:08.8]} 35... hxg5 {[%clk 0:00:21.6]} 36. fxg5 {[%clk
0:00:09.2]} 36... Nxg2 {[%clk 0:00:20.7]} 37. Kxg2 {[%clk 0:00:08.7]} 37...
Qxb2+ {[%clk 0:00:21.4]} 38. Kh1 {[%clk 0:00:06.8]} 38... Qb7+ {[%clk
0:00:17.7]} 39. Kg1 {[%clk 0:00:07]} 39... Qe7 {[%clk 0:00:12.4]} 40. Kh1 {[%clk
0:00:05.1]} 40... Rxg5 {[%clk 0:00:12.5]} 41. Qf3 {[%clk 0:00:04.2]} 41... Rxe5
{[%clk 0:00:09.5]} 42. Rf1 {[%clk 0:00:04.3]} 42... Rg5 {[%clk 0:00:08.8]} 43.
Rae1 {[%clk 0:00:03.8]} 43... Qc7 {[%clk 0:00:08.2]} 44. Qf6 {[%clk 0:00:02.7]}
44... Rg7 {[%clk 0:00:08.1]} 45. Qf3 {[%clk 0:00:01.6]} 45... Rh7 {[%clk
0:00:07.9]} 46. Qf2 {[%clk 0:00:01.5]} 46... Qb7+ {[%clk 0:00:07.3]} 0-1

[Event "Early-Titled-Tuesday-Blitz-March-05-2024"]
[Site "Chess.com"]
[Date "2024.03.05"]
[Round "7"]
[White "Smoking_Crow"]
[Black "SchmakAttack"]
[Result "0-1"]
[WhiteElo "2630"]
[BlackElo "2816"]
[TimeControl "180+1"]
[EndTime "9:20:14 PST"]
[Termination "SchmakAttack won by resignation"]

1. e4 {[%clk 0:03:00.4]} 1... e6 {[%clk 0:03:00.1]} 2. d4 {[%clk 0:03:00.1]}
2... d5 {[%clk 0:03:00.8]} 3. Nd2 {[%clk 0:03:00.6]} 3... c5 {[%clk 0:03:01.2]}
4. exd5 {[%clk 0:03:00.7]} 4... Qxd5 {[%clk 0:03:02.1]} 5. Ngf3 {[%clk
0:03:01.2]} 5... cxd4 {[%clk 0:03:02.6]} 6. Bc4 {[%clk 0:03:01.7]} 6... Qd6
{[%clk 0:03:03.3]} 7. O-O {[%clk 0:03:02.6]} 7... Nf6 {[%clk 0:03:04]} 8. Nb3
{[%clk 0:03:03]} 8... Nc6 {[%clk 0:03:04.7]} 9. Nbxd4 {[%clk 0:03:02.6]} 9...
Nxd4 {[%clk 0:03:05.6]} 10. Nxd4 {[%clk 0:03:03.5]} 10... Be7 {[%clk 0:03:06.1]}
11. Re1 {[%clk 0:03:03.4]} 11... O-O {[%clk 0:03:03.9]} 12. c3 {[%clk
0:03:02.8]} 12... Qc7 {[%clk 0:02:58.8]} 13. Qe2 {[%clk 0:03:01.9]} 13... Bd7
{[%clk 0:02:58.5]} 14. Bg5 {[%clk 0:03:01.2]} 14... a5 {[%clk 0:02:54.9]} 15.
Rad1 {[%clk 0:03:00.3]} 15... Rad8 {[%clk 0:02:18.8]} 16. Bh4 {[%clk 0:02:57.1]}
16... a4 {[%clk 0:02:18.1]} 17. Bg3 {[%clk 0:02:56.3]} 17... Qb6 {[%clk
0:02:15.7]} 18. a3 {[%clk 0:02:56.5]} 18... Qc5 {[%clk 0:01:56.9]} 19. Ba2
{[%clk 0:02:54.7]} 19... b5 {[%clk 0:01:38.2]} 20. Rd3 {[%clk 0:02:53]} 20...
Rfe8 {[%clk 0:01:34.1]} 21. Red1 {[%clk 0:02:52.3]} 21... Bc8 {[%clk 0:01:25.2]}
22. Be5 {[%clk 0:02:50.1]} 22... Bb7 {[%clk 0:01:20.1]} 23. Rg3 {[%clk
0:02:15.5]} 23... Bd5 {[%clk 0:01:19.4]} 24. Bb1 {[%clk 0:02:00.4]} 24... Bc4
{[%clk 0:01:00.3]} 25. Qe3 {[%clk 0:01:54.3]} 25... Rd5 {[%clk 0:00:57.4]} 26.
Re1 {[%clk 0:01:43]} 26... Rxe5 {[%clk 0:00:44.3]} 27. Qxe5 {[%clk 0:01:42.5]}
27... Qxe5 {[%clk 0:00:45.2]} 28. Rxe5 {[%clk 0:01:42.7]} 28... Bd6 {[%clk
0:00:45.9]} 29. Re1 {[%clk 0:01:41.3]} 29... Bxg3 {[%clk 0:00:45.7]} 30. hxg3
{[%clk 0:01:42.2]} 30... Kf8 {[%clk 0:00:42.9]} 31. f3 {[%clk 0:01:39.5]} 31...
g6 {[%clk 0:00:40.9]} 32. Kf2 {[%clk 0:01:39.2]} 32... Ke7 {[%clk 0:00:37.3]}
33. g4 {[%clk 0:01:37.8]} 33... Nd5 {[%clk 0:00:33.5]} 34. Be4 {[%clk
0:01:32.9]} 34... Kd6 {[%clk 0:00:31.8]} 35. Bxd5 {[%clk 0:01:32.7]} 35... Kxd5
{[%clk 0:00:31.9]} 36. g5 {[%clk 0:01:31.8]} 36... e5 {[%clk 0:00:27.1]} 37. f4
{[%clk 0:01:29.2]} 37... Bd3 {[%clk 0:00:19]} 38. Rxe5+ {[%clk 0:01:24.3]} 38...
Rxe5 {[%clk 0:00:19.9]} 39. fxe5 {[%clk 0:01:24.5]} 39... Kxe5 {[%clk
0:00:20.1]} 40. Ke3 {[%clk 0:01:24.5]} 40... Bf1 {[%clk 0:00:20.3]} 41. Kf2
{[%clk 0:01:07.8]} 41... Bc4 {[%clk 0:00:20.3]} 42. Ke3 {[%clk 0:01:08]} 42...
f6 {[%clk 0:00:12.4]} 43. gxf6 {[%clk 0:01:06.2]} 43... Kxf6 {[%clk 0:00:13.3]}
44. g3 {[%clk 0:01:00.8]} 44... g5 {[%clk 0:00:13.4]} 45. Nf3 {[%clk 0:01:00.5]}
45... h5 {[%clk 0:00:12.4]} 46. Nd2 {[%clk 0:01:00]} 46... Kf5 {[%clk
0:00:08.9]} 47. Ne4 {[%clk 0:00:52.4]} 47... h4 {[%clk 0:00:08]} 48. gxh4 {[%clk
0:00:50.4]} 48... gxh4 {[%clk 0:00:08.9]} 49. Nf2 {[%clk 0:00:50.2]} 49... Bd5
{[%clk 0:00:07.2]} 50. Nh3 {[%clk 0:00:48.2]} 50... Kg4 {[%clk 0:00:06.7]} 51.
Nf4 {[%clk 0:00:48.4]} 51... Bc4 {[%clk 0:00:06.5]} 52. Ng6 {[%clk 0:00:43.3]}
52... h3 {[%clk 0:00:06.1]} 53. Kf2 {[%clk 0:00:43.4]} 53... Bd5 {[%clk
0:00:06.3]} 54. Ne5+ {[%clk 0:00:38.9]} 54... Kf5 {[%clk 0:00:06.3]} 55. Nf3
{[%clk 0:00:32.7]} 55... Bxf3 {[%clk 0:00:06.5]} 56. Kxf3 {[%clk 0:00:32.9]}
56... Ke5 {[%clk 0:00:07.2]} 0-1

[Event "Early-Titled-Tuesday-Blitz-March-05-2024"]
[Site "Chess.com"]
[Date "2024.03.05"]
[Round "7"]
[White "BardArtem"]
[Black "RobertoJBM"]
[Result "1-0"]
[WhiteElo "2740"]
[BlackElo "2833"]
[TimeControl "180+1"]
[EndTime "9:20:17 PST"]
[Termination "BardArtem won by resignation"]

1. e4 {[%clk 0:02:57.8]} 1... c6 {[%clk 0:02:59.8]} 2. d4 {[%clk 0:02:53.3]}
2... d5 {[%clk 0:02:59.2]} 3. exd5 {[%clk 0:02:54.2]} 3... cxd5 {[%clk
0:02:58.3]} 4. Bd3 {[%clk 0:02:54.3]} 4... Nc6 {[%clk 0:02:57.9]} 5. c3 {[%clk
0:02:53.8]} 5... g6 {[%clk 0:02:58.4]} 6. h3 {[%clk 0:02:53.4]} 6... Bf5 {[%clk
0:02:58]} 7. Be2 {[%clk 0:02:53.4]} 7... Bh6 {[%clk 0:02:56.3]} 8. Bxh6 {[%clk
0:02:49.5]} 8... Nxh6 {[%clk 0:02:57.2]} 9. Nf3 {[%clk 0:02:49.5]} 9... Qd6
{[%clk 0:02:54.6]} 10. Nbd2 {[%clk 0:02:45.9]} 10... O-O {[%clk 0:02:52.2]} 11.
Nf1 {[%clk 0:02:43.7]} 11... f6 {[%clk 0:02:46.4]} 12. Ne3 {[%clk 0:02:43.2]}
12... Rad8 {[%clk 0:02:41.3]} 13. Qd2 {[%clk 0:02:40]} 13... Kg7 {[%clk
0:02:40.6]} 14. O-O {[%clk 0:02:23.6]} 14... e5 {[%clk 0:02:34.2]} 15. dxe5
{[%clk 0:02:23]} 15... fxe5 {[%clk 0:02:34.1]} 16. Rad1 {[%clk 0:02:23]} 16...
d4 {[%clk 0:02:30.1]} 17. cxd4 {[%clk 0:02:17.6]} 17... exd4 {[%clk 0:02:27.9]}
18. Nxf5+ {[%clk 0:02:04.4]} 18... Nxf5 {[%clk 0:02:25.8]} 19. Bd3 {[%clk
0:02:04.8]} 19... Nfe7 {[%clk 0:02:21.4]} 20. Be4 {[%clk 0:02:02.8]} 20... Rd7
{[%clk 0:02:05.4]} 21. Rfe1 {[%clk 0:02:01.9]} 21... Rf6 {[%clk 0:02:03]} 22. a3
{[%clk 0:01:48.5]} 22... a5 {[%clk 0:01:48.6]} 23. h4 {[%clk 0:01:47.9]} 23...
Rf4 {[%clk 0:01:47.1]} 24. b4 {[%clk 0:01:34]} 24... axb4 {[%clk 0:01:46.5]} 25.
axb4 {[%clk 0:01:34.9]} 25... Nxb4 {[%clk 0:01:42.4]} 26. Nxd4 {[%clk
0:01:27.8]} 26... Rf6 {[%clk 0:01:13.7]} 27. h5 {[%clk 0:01:22.8]} 27... Nbd5
{[%clk 0:00:58.8]} 28. h6+ {[%clk 0:01:20.5]} 28... Kf7 {[%clk 0:00:47.5]} 29.
Nf3 {[%clk 0:01:07]} 29... Kg8 {[%clk 0:00:31.5]} 30. Bxd5+ {[%clk 0:00:52.9]}
30... Nxd5 {[%clk 0:00:25.5]} 31. Re8+ {[%clk 0:00:42.7]} 31... Rf8 {[%clk
0:00:25.4]} 32. Rxf8+ {[%clk 0:00:39]} 32... Qxf8 {[%clk 0:00:25.4]} 33. Qa2
{[%clk 0:00:30.7]} 33... Qf5 {[%clk 0:00:19.1]} 34. Nd4 {[%clk 0:00:25.9]} 34...
Qe5 {[%clk 0:00:18.3]} 35. Qa8+ {[%clk 0:00:23.6]} 35... Kf7 {[%clk 0:00:18.1]}
36. Nf3 {[%clk 0:00:22.2]} 36... Qf4 {[%clk 0:00:14.7]} 37. Re1 {[%clk
0:00:06.9]} 37... Re7 {[%clk 0:00:11.9]} 38. Rd1 {[%clk 0:00:07]} 38... Rd7
{[%clk 0:00:12]} 39. Qa2 {[%clk 0:00:07.4]} 39... Qf5 {[%clk 0:00:11.7]} 40. Re1
{[%clk 0:00:06.9]} 40... Re7 {[%clk 0:00:11.2]} 41. Rd1 {[%clk 0:00:07.6]} 41...
Rd7 {[%clk 0:00:11.2]} 42. Qa1 {[%clk 0:00:08.4]} 42... Qf6 {[%clk 0:00:10.9]}
43. Ne5+ {[%clk 0:00:08.5]} 43... Ke6 {[%clk 0:00:11.3]} 44. Nxd7 {[%clk
0:00:09.2]} 44... Qxa1 {[%clk 0:00:11.2]} 45. Nc5+ {[%clk 0:00:06.7]} 45... Kd6
{[%clk 0:00:11.8]} 46. Nxb7+ {[%clk 0:00:07.3]} 46... Kc7 {[%clk 0:00:12]} 47.
Rxa1 {[%clk 0:00:08.2]} 47... Kxb7 {[%clk 0:00:12.5]} 48. Re1 {[%clk 0:00:05.9]}
48... Kc6 {[%clk 0:00:12]} 49. Re6+ {[%clk 0:00:05.7]} 49... Kd7 {[%clk
0:00:12.1]} 50. Rxg6 {[%clk 0:00:06.6]} 1-0

[Event "Early-Titled-Tuesday-Blitz-March-05-2024"]
[Site "Chess.com"]
[Date "2024.03.05"]
[Round "7"]
[White "Genghis_K"]
[Black "Evgeny81"]
[Result "0-1"]
[WhiteElo "2939"]
[BlackElo "2788"]
[TimeControl "180+1"]
[EndTime "9:20:19 PST"]
[Termination "Evgeny81 won by resignation"]

1. e4 {[%clk 0:03:00.9]} 1... e6 {[%clk 0:02:57.5]} 2. d4 {[%clk 0:03:00.6]}
2... d5 {[%clk 0:02:58.2]} 3. Nc3 {[%clk 0:03:01.3]} 3... Bb4 {[%clk 0:02:55.7]}
4. Ne2 {[%clk 0:03:01.7]} 4... Ne7 {[%clk 0:02:54.1]} 5. a3 {[%clk 0:02:58.4]}
5... Ba5 {[%clk 0:02:54.2]} 6. b4 {[%clk 0:02:57.1]} 6... Bb6 {[%clk 0:02:54.4]}
7. Bb2 {[%clk 0:02:57.9]} 7... a5 {[%clk 0:02:52.8]} 8. b5 {[%clk 0:02:46.4]}
8... a4 {[%clk 0:02:50.6]} 9. Qd3 {[%clk 0:02:35.5]} 9... O-O {[%clk 0:02:49]}
10. O-O-O {[%clk 0:02:34.1]} 10... c6 {[%clk 0:02:47.5]} 11. h4 {[%clk
0:02:27.4]} 11... cxb5 {[%clk 0:02:46.2]} 12. Nxb5 {[%clk 0:02:27.6]} 12... Nbc6
{[%clk 0:02:38]} 13. h5 {[%clk 0:02:25.5]} 13... h6 {[%clk 0:02:35.4]} 14. g4
{[%clk 0:01:54.4]} 14... dxe4 {[%clk 0:02:32.2]} 15. Qxe4 {[%clk 0:01:51.1]}
15... Qd5 {[%clk 0:02:32.4]} 16. Nec3 {[%clk 0:01:50.6]} 16... Qxe4 {[%clk
0:02:30.1]} 17. Nxe4 {[%clk 0:01:51.5]} 17... Bd7 {[%clk 0:02:26.2]} 18. g5
{[%clk 0:01:49.3]} 18... hxg5 {[%clk 0:02:16.8]} 19. h6 {[%clk 0:01:49.5]} 19...
f6 {[%clk 0:02:17.2]} 20. hxg7 {[%clk 0:01:15.5]} 20... Kxg7 {[%clk 0:02:18.1]}
21. Nxg5 {[%clk 0:01:15.8]} 21... Rh8 {[%clk 0:01:51.9]} 22. Rg1 {[%clk
0:01:15.6]} 22... fxg5 {[%clk 0:01:24.1]} 23. d5+ {[%clk 0:01:15.9]} 23... Kg6
{[%clk 0:01:22.7]} 24. dxc6 {[%clk 0:01:07.4]} 24... Bxc6 {[%clk 0:01:23.6]} 25.
Bd3+ {[%clk 0:01:07.6]} 25... Nf5 {[%clk 0:01:22.3]} 26. Bxh8 {[%clk 0:00:56]}
26... Rxh8 {[%clk 0:01:23.2]} 27. Rge1 {[%clk 0:00:56.4]} 27... Kf6 {[%clk
0:01:12.3]} 28. Bxf5 {[%clk 0:00:51.7]} 28... Kxf5 {[%clk 0:01:12.6]} 29. Nd4+
{[%clk 0:00:51.3]} 29... Bxd4 {[%clk 0:01:12]} 30. Rxd4 {[%clk 0:00:52.2]} 30...
Rh2 {[%clk 0:01:09.2]} 31. Rd2 {[%clk 0:00:46]} 31... e5 {[%clk 0:01:04.8]} 32.
Re3 {[%clk 0:00:45.7]} 32... Kf4 {[%clk 0:00:53.9]} 33. Rc3 {[%clk 0:00:40.5]}
33... g4 {[%clk 0:00:49]} 34. Kb2 {[%clk 0:00:40.6]} 34... Rh3 {[%clk
0:00:46.2]} 35. Rd8 {[%clk 0:00:38]} 35... Rxc3 {[%clk 0:00:39.2]} 36. Kxc3
{[%clk 0:00:38.9]} 36... Kf3 {[%clk 0:00:38.5]} 37. Rg8 {[%clk 0:00:36.6]} 37...
Be4 {[%clk 0:00:33.5]} 38. Rg5 {[%clk 0:00:31.1]} 38... Bc6 {[%clk 0:00:30.8]}
39. Kd2 {[%clk 0:00:28.9]} 39... Kf4 {[%clk 0:00:28.6]} 40. Rg8 {[%clk
0:00:25.3]} 40... Kf3 {[%clk 0:00:28.7]} 41. Rf8+ {[%clk 0:00:22]} 41... Ke4
{[%clk 0:00:28.8]} 42. Kc3 {[%clk 0:00:17.6]} 42... Bd5 {[%clk 0:00:27.6]} 43.
Kb4 {[%clk 0:00:17.3]} 43... Bc6 {[%clk 0:00:27.9]} 44. Kc5 {[%clk 0:00:17.8]}
44... Bd5 {[%clk 0:00:22.7]} 45. Kb4 {[%clk 0:00:08.9]} 45... Bc6 {[%clk
0:00:22.8]} 46. Kc4 {[%clk 0:00:09.2]} 46... Bd5+ {[%clk 0:00:21.8]} 47. Kc5
{[%clk 0:00:09.8]} 47... Bc6 {[%clk 0:00:22.7]} 48. c4 {[%clk 0:00:08.3]} 48...
Kd3 {[%clk 0:00:21.4]} 49. Rg8 {[%clk 0:00:08.1]} 49... Bf3 {[%clk 0:00:21.6]}
50. Re8 {[%clk 0:00:03.5]} 50... e4 {[%clk 0:00:21.9]} 51. Kb6 {[%clk 0:00:03]}
51... Ke2 {[%clk 0:00:22.2]} 52. Kxb7 {[%clk 0:00:03]} 52... e3+ {[%clk
0:00:21.4]} 53. Kb6 {[%clk 0:00:02.7]} 53... Kxf2 {[%clk 0:00:21.9]} 54. c5
{[%clk 0:00:03.4]} 54... e2 {[%clk 0:00:22]} 55. c6 {[%clk 0:00:02.9]} 55...
Bxc6 {[%clk 0:00:21.6]} 56. Kxc6 {[%clk 0:00:02.3]} 56... e1=Q {[%clk 0:00:22]}
57. Rxe1 {[%clk 0:00:02.7]} 57... Kxe1 {[%clk 0:00:22.5]} 58. Kb5 {[%clk
0:00:03.5]} 58... g3 {[%clk 0:00:23.4]} 59. Kxa4 {[%clk 0:00:04.2]} 59... g2
{[%clk 0:00:24]} 60. Kb5 {[%clk 0:00:05.1]} 60... g1=Q {[%clk 0:00:24.7]} 0-1

[Event "Early-Titled-Tuesday-Blitz-March-05-2024"]
[Site "Chess.com"]
[Date "2024.03.05"]
[Round "7"]
[White "Akylbek2021"]
[Black "guillembaches"]
[Result "1/2-1/2"]
[WhiteElo "2316"]
[BlackElo "2524"]
[TimeControl "180+1"]
[EndTime "9:20:19 PST"]
[Termination "Game drawn - insufficient material"]

1. d4 {[%clk 0:03:00.9]} 1... d5 {[%clk 0:02:59.9]} 2. Nf3 {[%clk 0:03:01.5]}
2... e6 {[%clk 0:02:59.7]} 3. c4 {[%clk 0:03:02]} 3... a6 {[%clk 0:02:58.9]} 4.
cxd5 {[%clk 0:02:58.1]} 4... exd5 {[%clk 0:02:59.8]} 5. Nc3 {[%clk 0:02:58.3]}
5... Nf6 {[%clk 0:03:00.1]} 6. Bg5 {[%clk 0:02:56.3]} 6... Be6 {[%clk
0:03:00.3]} 7. Qc2 {[%clk 0:02:56.2]} 7... Nbd7 {[%clk 0:02:58.5]} 8. e3 {[%clk
0:02:56.2]} 8... Bd6 {[%clk 0:02:58]} 9. Bd3 {[%clk 0:02:56.1]} 9... c6 {[%clk
0:02:58.2]} 10. O-O {[%clk 0:02:55.7]} 10... Qc7 {[%clk 0:02:58.3]} 11. Rab1
{[%clk 0:02:55.6]} 11... h6 {[%clk 0:02:55.1]} 12. Bh4 {[%clk 0:02:55.4]} 12...
g5 {[%clk 0:02:54.6]} 13. Bg3 {[%clk 0:02:54.4]} 13... Bxg3 {[%clk 0:02:54.7]}
14. hxg3 {[%clk 0:02:53.6]} 14... Qd6 {[%clk 0:02:54.2]} 15. b4 {[%clk
0:02:48.6]} 15... Rg8 {[%clk 0:02:53]} 16. a4 {[%clk 0:02:39.5]} 16... Rc8
{[%clk 0:02:38.5]} 17. b5 {[%clk 0:02:35.4]} 17... axb5 {[%clk 0:02:38.2]} 18.
axb5 {[%clk 0:02:35.5]} 18... c5 {[%clk 0:02:37.6]} 19. dxc5 {[%clk 0:02:11.6]}
19... Rxc5 {[%clk 0:02:25.3]} 20. Qb2 {[%clk 0:02:06.6]} 20... h5 {[%clk
0:02:10.3]} 21. Na4 {[%clk 0:02:02.6]} 21... Rc8 {[%clk 0:02:08.4]} 22. Qb4
{[%clk 0:02:00.3]} 22... Ke7 {[%clk 0:01:46]} 23. Nd4 {[%clk 0:01:52.9]} 23...
Qxb4 {[%clk 0:01:40.8]} 24. Rxb4 {[%clk 0:01:52.7]} 24... h4 {[%clk 0:01:39.8]}
25. gxh4 {[%clk 0:01:44.6]} 25... gxh4 {[%clk 0:01:29.9]} 26. Nf5+ {[%clk
0:01:44.7]} 26... Bxf5 {[%clk 0:01:18.1]} 27. Bxf5 {[%clk 0:01:45.6]} 27... Rc4
{[%clk 0:01:16.1]} 28. Rxc4 {[%clk 0:01:31.8]} 28... dxc4 {[%clk 0:01:17]} 29.
Rc1 {[%clk 0:01:28.8]} 29... Rg5 {[%clk 0:01:09.5]} 30. e4 {[%clk 0:01:18.8]}
30... h3 {[%clk 0:00:32.7]} 31. g3 {[%clk 0:01:10.7]} 31... Ne5 {[%clk
0:00:29.4]} 32. f4 {[%clk 0:01:04.9]} 32... Rxg3+ {[%clk 0:00:27.3]} 33. Kh2
{[%clk 0:00:58.3]} 33... Nd3 {[%clk 0:00:16.4]} 34. Kxg3 {[%clk 0:00:12.2]}
34... Nxc1 {[%clk 0:00:15.4]} 35. e5 {[%clk 0:00:05.9]} 35... Nh5+ {[%clk
0:00:12.7]} 36. Kxh3 {[%clk 0:00:06.6]} 36... Nxf4+ {[%clk 0:00:12.9]} 37. Kg4
{[%clk 0:00:07.4]} 37... Nfd3 {[%clk 0:00:13]} 38. b6 {[%clk 0:00:06]} 38... Na2
{[%clk 0:00:12.1]} 39. Bxd3 {[%clk 0:00:02.5]} 39... cxd3 {[%clk 0:00:12.1]} 40.
Kf3 {[%clk 0:00:03.1]} 40... Nb4 {[%clk 0:00:11.1]} 41. Nc5 {[%clk 0:00:02.8]}
41... Nd5 {[%clk 0:00:10.8]} 42. Nxb7 {[%clk 0:00:02.3]} 42... Nxb6 {[%clk
0:00:11.2]} 43. Nc5 {[%clk 0:00:02.5]} 43... Nd7 {[%clk 0:00:10.8]} 44. Nxd3
{[%clk 0:00:02.5]} 44... Ke6 {[%clk 0:00:11.1]} 45. Kf4 {[%clk 0:00:02.8]} 45...
Nxe5 {[%clk 0:00:11.2]} 46. Nxe5 {[%clk 0:00:03.2]} 46... f6 {[%clk 0:00:11.6]}
47. Nf3 {[%clk 0:00:03.8]} 47... Kf7 {[%clk 0:00:11.7]} 48. Ke3 {[%clk
0:00:04.4]} 48... Kg6 {[%clk 0:00:12.1]} 49. Nd4 {[%clk 0:00:04.9]} 49... Kg5
{[%clk 0:00:11.9]} 50. Ke4 {[%clk 0:00:05.3]} 50... Kg6 {[%clk 0:00:11.9]} 51.
Nf5 {[%clk 0:00:06.2]} 51... Kf7 {[%clk 0:00:12.3]} 52. Kf4 {[%clk 0:00:07.1]}
52... Ke6 {[%clk 0:00:12.8]} 53. Ng7+ {[%clk 0:00:06.9]} 53... Kf7 {[%clk
0:00:13.2]} 54. Nh5 {[%clk 0:00:07.5]} 54... Kg6 {[%clk 0:00:13]} 55. Nxf6
{[%clk 0:00:08]} 1/2-1/2

[Event "Early-Titled-Tuesday-Blitz-March-05-2024"]
[Site "Chess.com"]
[Date "2024.03.05"]
[Round "7"]
[White "awesomevishesh"]
[Black "Sebastian"]
[Result "0-1"]
[WhiteElo "2644"]
[BlackElo "2917"]
[TimeControl "180+1"]
[EndTime "9:20:20 PST"]
[Termination "Sebastian won by resignation"]

1. d4 {[%clk 0:03:00.9]} 1... d5 {[%clk 0:02:58.7]} 2. c4 {[%clk 0:03:00.5]}
2... dxc4 {[%clk 0:02:59.2]} 3. Nf3 {[%clk 0:02:59.4]} 3... Nf6 {[%clk 0:02:59]}
4. e3 {[%clk 0:02:59.2]} 4... e6 {[%clk 0:02:59.6]} 5. Bxc4 {[%clk 0:02:58.9]}
5... a6 {[%clk 0:03:00.3]} 6. O-O {[%clk 0:02:55.7]} 6... c5 {[%clk 0:03:00.9]}
7. dxc5 {[%clk 0:02:36.3]} 7... Bxc5 {[%clk 0:02:59.9]} 8. Qxd8+ {[%clk
0:02:35.3]} 8... Kxd8 {[%clk 0:03:00.8]} 9. b3 {[%clk 0:02:22.9]} 9... Ke7
{[%clk 0:02:58.4]} 10. Bb2 {[%clk 0:02:22.8]} 10... Nbd7 {[%clk 0:02:57]} 11.
Nbd2 {[%clk 0:02:22.5]} 11... b6 {[%clk 0:02:57.1]} 12. Rfd1 {[%clk 0:02:21]}
12... Bb7 {[%clk 0:02:56.6]} 13. Be2 {[%clk 0:02:18.6]} 13... Rhd8 {[%clk
0:02:54.9]} 14. Nc4 {[%clk 0:02:12.8]} 14... Bd5 {[%clk 0:02:50.7]} 15. Rac1
{[%clk 0:02:08.5]} 15... b5 {[%clk 0:02:35.7]} 16. Nce5 {[%clk 0:01:55.8]} 16...
Nxe5 {[%clk 0:02:33.8]} 17. Nxe5 {[%clk 0:01:54.3]} 17... Bd6 {[%clk 0:02:23.6]}
18. f3 {[%clk 0:01:25.1]} 18... Rac8 {[%clk 0:02:12.8]} 19. e4 {[%clk
0:01:22.9]} 19... Bb7 {[%clk 0:02:02.2]} 20. Kf2 {[%clk 0:01:13.2]} 20... Ne8
{[%clk 0:01:51.6]} 21. Nd3 {[%clk 0:01:09.4]} 21... f6 {[%clk 0:01:39.1]} 22. h4
{[%clk 0:01:02]} 22... e5 {[%clk 0:01:35.6]} 23. Rxc8 {[%clk 0:00:58.6]} 23...
Rxc8 {[%clk 0:01:34.7]} 24. Rc1 {[%clk 0:00:58.9]} 24... Rxc1 {[%clk 0:01:31.7]}
25. Bxc1 {[%clk 0:00:58.5]} 25... Nc7 {[%clk 0:01:31.1]} 26. Be3 {[%clk
0:00:48.3]} 26... Ne6 {[%clk 0:01:31]} 27. g3 {[%clk 0:00:44.6]} 27... g5 {[%clk
0:01:26.1]} 28. Bf1 {[%clk 0:00:26.2]} 28... g4 {[%clk 0:01:13]} 29. Be2 {[%clk
0:00:23.2]} 29... gxf3 {[%clk 0:01:11.7]} 30. Bxf3 {[%clk 0:00:23.2]} 30... b4
{[%clk 0:01:07.2]} 31. Nb2 {[%clk 0:00:19.1]} 31... Bc5 {[%clk 0:01:04.9]} 32.
Nc4 {[%clk 0:00:17.6]} 32... Bc6 {[%clk 0:01:01.1]} 33. Bxc5+ {[%clk 0:00:14]}
33... Nxc5 {[%clk 0:01:00.8]} 34. Ke3 {[%clk 0:00:14.9]} 34... Ne6 {[%clk
0:00:53.5]} 35. Bg4 {[%clk 0:00:12.9]} 35... Nd4 {[%clk 0:00:53.6]} 36. Bd1
{[%clk 0:00:07.5]} 36... Nb5 {[%clk 0:00:51.2]} 37. Bc2 {[%clk 0:00:05.1]} 37...
Bd7 {[%clk 0:00:37.9]} 38. Bd3 {[%clk 0:00:05.3]} 38... Nd4 {[%clk 0:00:13.5]}
39. Nb6 {[%clk 0:00:05.3]} 39... a5 {[%clk 0:00:12.2]} 40. Nc4 {[%clk 0:00:05]}
40... a4 {[%clk 0:00:12.1]} 41. bxa4 {[%clk 0:00:05.3]} 41... Bxa4 {[%clk
0:00:12]} 42. Nb6 {[%clk 0:00:05.6]} 42... Bc6 {[%clk 0:00:10.9]} 43. Bc4 {[%clk
0:00:05.9]} 43... Kd6 {[%clk 0:00:10.9]} 44. Bd5 {[%clk 0:00:05.5]} 44... Bb5
{[%clk 0:00:10.9]} 45. Bb3 {[%clk 0:00:05.5]} 45... Kc5 {[%clk 0:00:10.3]} 46.
Bf7 {[%clk 0:00:05.4]} 46... Kxb6 {[%clk 0:00:09.9]} 47. g4 {[%clk 0:00:04.3]}
47... h6 {[%clk 0:00:09.9]} 48. Bg8 {[%clk 0:00:03.1]} 48... Kc5 {[%clk
0:00:10]} 49. Bd5 {[%clk 0:00:03.2]} 49... Bd7 {[%clk 0:00:09.8]} 50. g5 {[%clk
0:00:03.1]} 50... fxg5 {[%clk 0:00:09.9]} 51. hxg5 {[%clk 0:00:04]} 51... hxg5
{[%clk 0:00:10.5]} 52. Kf2 {[%clk 0:00:04.7]} 52... Be6 {[%clk 0:00:09.2]} 0-1